[Event "Coimbra Queima Fitas Open 2024"]
[Site "Coimbra"]
[Date "2024.04.27"]
[Round "5.7"]
[White "Pintor, Simao Maciel Abranch"]
[Black "Povshednyi, Ivan"]
[Result "1/2-1/2"]
[ECO "B12"]
[WhiteElo "2039"]
[BlackElo "2249"]
[Annotator "TA"]
[PlyCount "103"]
[EventDate "2024.04.23"]
[EventType "swiss"]
[EventCountry "POR"]
[SourceTitle "playchess.com"]
[Source "ChessBase"]
[SourceQuality "1"]
[TimeControl "5400+30"]

{[%evp 10,103,35,35,34,25,61,0,0,0,0,-14,-13,-12,-18,-31,-21,-22,-21,-4,0,0,0,0,41,-4,-13,0,7,-30,0,0,0,0,0,0,61,56,55,14,7,0,0,0,0,0,0,-12,-16,-14,-10,-8,-6,-2,0,-8,-8,-9,-9,-9,-5,-16,-2,-8,0,0,0,-6,0,0,0,0,0,0,0,0,12,5,5,0,0,0,0,0,0,0,0,0,0,-7,0,0,0,-8,0,0]} 1. e4 {[%emt 0:00:03]} c6 {[%emt 0:00:21]} 2. d4 {[%emt 0:00:03]} d5 {[%emt 0:00:06]} 3. e5 {[%emt 0:00:04]} Bf5 {[%emt 0:00:13]} 4. Nf3 {[%emt 0:00:05]} e6 {[%emt 0:00:05]} 5. Be2 {[%emt 0:00:03]} Ne7 {[%emt 0:03:04]} 6. O-O {[%emt 0:00:56]} Ng6 {[%emt 0:00:22]} 7. c3 {[%emt 0:05:19]} Nd7 {[%emt 0:00:45]} 8. a4 {[%emt 0:00:54]} (8. Ne1 $14) 8... f6 $11 {[%emt 0:01:51]} 9. exf6 {[%emt 0:00:48]} Qxf6 {[%emt 0:00:09]} 10. Na3 {[%emt 0:01:58][%cal Bb1a3,Ba3c2,Bc2e3][%mdl 32]} Bd6 {[%emt 0:02:31]} 11. Bg5 {[%emt 0:00:25]} Qf7 {[%emt 0:00:21]} 12. Nh4 {[%emt 0:04:58]} Nxh4 {[%emt 0:17:38]} 13. Bxh4 {[%emt 0:00:05]} O-O {[%emt 0:01:52]} 14. Nc2 {[%emt 0:04:18]} e5 {[%emt 0:14:40]} 15. Bg3 {[%emt 0:09:42]} Rae8 {[%emt 0:09:53]} 16. Ne3 {[%emt 0:05:18]} Be4 {[%emt 0:05:55]} 17. Bh5 {[%emt 0:08:28]} Bg6 {[%emt 0:03:36]} 18. Bf3 {[%emt 0:05:37][%cal Oe3d5]} Bb8 {[%emt 0:03:25]} 19. c4 {[%emt 0:14:11]} exd4 {[%emt 0:22:51]} 20. Bxb8 {[%emt 0:02:56]} Nxb8 {[%emt 0:01:41]} 21. Qxd4 {[%emt 0:03:02]} Be4 {[%emt 0:01:00]} 22. Be2 {[%emt 0:01:40]} Qf6 {[%emt 0:04:59]} (22... c5 $11 23. Qxc5 b6) 23. Qxf6 $14 {[%emt 0:01:25]} ({Reject} 23. Qxa7 d4 (23... Qxb2 $2 24. Rae1 $19) 24. Ng4 Qd6 $15) 23... Rxf6 {[%emt 0:00:22]} 24. cxd5 {[%emt 0:00:33]} cxd5 {[%emt 0:00:37] The position is equal.} 25. Rfd1 {[%emt 0:06:34][%cal Oe2b5]} Nc6 {[%emt 0:00:27]} 26. Rd2 {[%emt 0:06:44]} d4 {[%emt 0:01:19]} 27. Bc4+ {[%emt 0:00:33]} Kf8 {[%emt 0:00:14]} 28. Nd5 {[%emt 0:01:36]} Rd6 {[%emt 0:02:11]} 29. Nc7 {[%emt 0:01:38]} Re7 {[%emt 0:00:29]} 30. Nb5 {[%emt 0:00:06]} Rd8 {[%emt 0:00:55]} 31. Rad1 {[%emt 0:00:26]} Red7 {[%emt 0:00:29]} 32. f3 {[%emt 0:02:28]} (32. Be6 $5 Re7 $8 33. Bc4 $11) 32... Bf5 {[%emt 0:00:07]} 33. Bd3 {[%emt 0:04:28]} Bxd3 {[%emt 0:00:25]} 34. Rxd3 {[%emt 0:00:01]} a6 {[%emt 0:00:34]} 35. Na3 {[%emt 0:00:17]} Ne5 {[%emt 0:00:41]} 36. R3d2 {[%emt 0:00:06]} g5 {[%emt 0:00:37]} 37. Re1 {[%emt 0:02:15]} Rd5 {[%emt 0:00:34]} 38. Re4 {[%emt 0:00:23]} b5 {[%emt 0:00:44]} 39. axb5 {[%emt 0:00:18]} axb5 {[%emt 0:00:01]} 40. Nc2 {[%emt 0:02:09]} Nc4 {[%emt 0:00:45]} 41. Rdxd4 {[%emt 0:00:06]} Nxb2 {[%emt 0:01:16]} 42. h4 {[%emt 0:00:41]} gxh4 {[%emt 0:00:35]} 43. Rxh4 {[%emt 0:00:16]} h5 {[%emt 0:00:38]} 44. Rhf4+ {[%emt 0:00:32]} Kg8 {[%emt 0:00:16]} 45. Rxd5 {[%emt 0:01:20]} Rxd5 $11 {[%emt 0:00:01][%mdl 4096] Endgame. KRN-KRN} 46. Nb4 {[%emt 0:00:12]} Rc5 {[%emt 0:00:35]} 47. Kh2 {[%emt 0:01:12]} Rc4 {[%emt 0:00:39]} 48. Kg3 {[%emt 0:00:21]} Kg7 {[%emt 0:00:35]} 49. Nd5 {[%emt 0:01:34]} Rxf4 {[%emt 0:00:29]} 50. Kxf4 {[%emt 0:00:18]} Nd3+ {[%emt 0:00:45]} 51. Kg5 {[%emt 0:02:30]} Ne1 {[%emt 0:00:23]} 52. Kxh5 {Weighted Error Value: White=0.07 (flawless) /Black=0.06 (flawless) .  Mistake:       	White=1     	Black=1      Inaccurate:     	White=3     	Black=3      OK:         	White=17    	Black=20     Best:        	White=2     	Black=2} 1/2-1/2

[Event "Coimbra Queima Fitas Open 2024"]
[Site "Coimbra"]
[Date "2024.04.27"]
[Round "5.8"]
[White "Pinto, Jose Joao Meireles A"]
[Black "Santos, Ricardo Alexandre Lu"]
[Result "1-0"]
[ECO "B15"]
[WhiteElo "1829"]
[BlackElo "1987"]
[Annotator "NA"]
[PlyCount "39"]
[EventDate "2024.04.23"]
[EventType "swiss"]
[EventCountry "POR"]
[SourceTitle "playchess.com"]
[Source "ChessBase"]
[SourceQuality "1"]
[TimeControl "5400+30"]

1. e4 {[%emt 0:02:00]} c6 {[%emt 0:00:50]} 2. d4 {[%emt 0:01:00]} d5 {[%emt 0:00:09]} 3. Nc3 {[%emt 0:00:03]} dxe4 {[%emt 0:00:05]} 4. Nxe4 {[%emt 0:00:04]} Nf6 {[%emt 0:00:10]} 5. Nxf6+ {[%emt 0:00:07]} exf6 {[%emt 0:00:09]} 6. Bc4 {[%emt 0:00:02]} Be6 {[%emt 0:02:41]} 7. Bxe6 {[%emt 0:01:56]} fxe6 {[%emt 0:00:29]} 8. Qh5+ {[%emt 0:00:16]} g6 {[%emt 0:00:14]} 9. Qe2 {[%emt 0:00:04]} Kf7 {[%emt 0:00:21]} 10. Nf3 {[%emt 0:00:49]} Bd6 {[%emt 0:00:21]} 11. Be3 {[%emt 0:04:31]} Qa5+ {[%emt 0:01:01]} 12. Bd2 {[%emt 0:01:59]} Qa6 {[%emt 0:00:31]} 13. c4 {[%emt 0:00:16]} Nd7 {[%emt 0:02:55]} 14. O-O {[%emt 0:01:10]} Rhe8 {[%emt 0:04:05]} 15. Rfe1 {[%emt 0:00:44]} e5 {[%emt 0:01:03]} 16. dxe5 {[%emt 0:13:50]} Nxe5 {[%emt 0:02:50]} 17. b3 {[%emt 0:04:12]} Rad8 {[%emt 0:04:56]} 18. Bc3 {[%emt 0:00:45]} Nd3 {[%emt 0:00:34]} 19. Ng5+ {[%emt 0:02:05]} Kf8 {[%emt 0:21:35]} 20. Qf3 {[%emt 0:02:44]} 1-0

[Event "Coimbra Queima Fitas Open 2024"]
[Site "Coimbra"]
[Date "2024.04.27"]
[Round "5.9"]
[White "Farias, David Nuno Moita Est"]
[Black "Almeida, Joao Pedro Dias"]
[Result "1-0"]
[ECO "B90"]
[WhiteElo "2194"]
[BlackElo "2006"]
[Annotator "NA RC"]
[PlyCount "95"]
[EventDate "2024.04.23"]
[EventType "swiss"]
[EventCountry "POR"]
[SourceTitle "playchess.com"]
[Source "ChessBase"]
[SourceQuality "1"]
[TimeControl "5400+30"]

1. e4 {[%emt 0:00:08]} c5 {[%emt 0:00:05]} 2. Nf3 {[%emt 0:00:06]} d6 {[%emt 0:00:02]} 3. d4 {[%emt 0:00:08]} cxd4 {[%emt 0:00:05]} 4. Nxd4 {[%emt 0:00:31]} Nf6 {[%emt 0:00:06]} 5. Nc3 {[%emt 0:00:08]} a6 {[%emt 0:00:07]} 6. Be3 {[%emt 0:00:13]} e5 {[%emt 0:00:06]} 7. Nb3 {[%emt 0:00:03]} Be7 {[%emt 0:00:10]} 8. h3 {[%emt 0:00:25]} h5 {[%emt 0:01:20]} 9. f4 {[%emt 0:19:21]} b5 {[%emt 0:05:51]} 10. Qf3 {[%emt 0:03:12]} Bb7 {[%emt 0:00:35]} 11. O-O-O {[%emt 0:01:28]} Nbd7 {[%emt 0:00:51]} 12. Bd3 {[%emt 0:15:58]} h4 {[%emt 0:03:06]} 13. Rhf1 {[%emt 0:05:24]} Nh5 {[%emt 0:01:05]} 14. fxe5 {[%emt 0:01:08]} Nxe5 {[%emt 0:00:28]} 15. Qf2 {[%emt 0:00:21]} Ng3 {[%emt 0:02:08]} 16. Rfe1 {[%emt 0:01:22]} Rc8 {[%emt 0:03:38]} 17. Kb1 {[%emt 0:05:01]} Bg5 {[%emt 0:04:03]} 18. Nd5 {[%emt 0:11:20]} Bxd5 {[%emt 0:00:50]} 19. exd5 {[%emt 0:00:53]} O-O {[%emt 0:00:16]} 20. Nd4 {[%emt 0:02:53]} g6 {[%emt 0:03:50]} 21. c3 {[%emt 0:11:13]} Re8 {[%emt 0:02:09]} 22. Bc2 {[%emt 0:01:47]} Nc4 {[%emt 0:01:48]} 23. Nc6 {[%emt 0:05:30]} Bxe3 {[%emt 0:06:04]} 24. Nxd8 {[%emt 0:07:28]} Bxf2 {[%emt 0:00:05]} 25. Rxe8+ {[%emt 0:00:02]} Kh7 {[%emt 0:00:07]} 26. Rf8 {[%emt 0:00:59]} Ne5 {[%emt 0:00:21]} 27. Rxf7+ {[%emt 0:03:04]} Nxf7 {[%emt 0:00:59]} 28. Nxf7 {[%emt 0:00:03]} Re8 {[%emt 0:04:37]} 29. Nxd6 {[%emt 0:00:45]} Re2 {[%emt 0:00:05]} 30. Nf7 {[%emt 0:02:03]} Kg7 {[%emt 0:00:39]} 31. Ng5 {[%emt 0:00:30]} Bb6 {[%emt 0:00:32]} 32. Ne6+ {[%emt 0:01:25]} Kf6 {[%emt 0:00:46]} 33. Nf4 {[%emt 0:00:50]} Rf2 {[%emt 0:00:46]} 34. Nxg6 {[%emt 0:01:13]} Rxc2 {[%emt 0:00:37]} 35. Kxc2 {[%emt 0:00:02]} Kxg6 {[%emt 0:00:19]} 36. d6 {[%emt 0:00:57]} Kf6 {[%emt 0:00:50]} 37. Re1 {[%emt 0:00:17]} Nf5 {[%emt 0:00:40]} 38. d7 {[%emt 0:00:03]} Ne7 {[%emt 0:01:05]} 39. Re4 Bd8 {[%emt 0:00:39]} 40. c4 {[%emt 0:01:41]} Nc6 {[%emt 0:00:52]} 41. c5 {[%emt 0:00:32]} Kf5 {[%emt 0:03:04]} 42. Re8 {[%emt 0:00:27]} Kf6 {[%emt 0:00:05]} 43. a3 {[%emt 0:00:34]} Be7 {[%emt 0:00:14]} 44. Rc8 {[%emt 0:00:26]} Nd4+ {[%emt 0:01:26]} 45. Kd3 {[%emt 0:00:11]} Ne6 {[%emt 0:00:03]} 46. c6 {[%emt 0:00:31]} Ke5 {[%emt 0:02:03]} 47. c7 {[%emt 0:00:29]} Nc5+ {[%emt 0:00:25]} 48. Ke2 1-0

[Event "Coimbra Queima Fitas Open 2024"]
[Site "Coimbra"]
[Date "2024.04.27"]
[Round "5.10"]
[White "Costa, Goncalo Martins Paul"]
[Black "Dias, Ivo Rodrigues"]
[Result "1/2-1/2"]
[ECO "A48"]
[WhiteElo "1855"]
[BlackElo "2145"]
[Annotator "NA RC"]
[PlyCount "80"]
[EventDate "2024.04.23"]
[EventType "swiss"]
[EventCountry "POR"]
[SourceTitle "playchess.com"]
[Source "ChessBase"]
[SourceQuality "1"]
[TimeControl "5400+30"]

1. d4 {[%emt 0:00:36]} Nf6 {[%emt 0:09:48]} 2. Bf4 {[%emt 0:00:11]} g6 {[%emt 0:01:56]} 3. Nf3 {[%emt 0:00:08]} Bg7 {[%emt 0:00:08]} 4. c3 {[%emt 0:00:31]} O-O {[%emt 0:00:24]} 5. Nbd2 {[%emt 0:00:07]} d6 {[%emt 0:00:20]} 6. e4 {[%emt 0:00:11]} c5 {[%emt 0:00:55]} 7. dxc5 {[%emt 0:00:54]} dxc5 {[%emt 0:00:03]} 8. Be2 {[%emt 0:00:49]} Nc6 {[%emt 0:00:53]} 9. O-O {[%emt 0:01:35]} b6 {[%emt 0:00:34]} 10. h3 {[%emt 0:00:55]} Bb7 {[%emt 0:01:46]} 11. Qc2 {[%emt 0:00:23]} Qc8 {[%emt 0:09:52]} 12. Rfe1 {[%emt 0:01:38]} Nh5 {[%emt 0:04:36]} 13. Be3 {[%emt 0:00:46]} Qc7 {[%emt 0:00:25]} 14. a4 {[%emt 0:01:09]} e6 {[%emt 0:09:56]} 15. Rad1 {[%emt 0:03:50]} a6 {[%emt 0:02:05]} 16. b4 {[%emt 0:07:54]} Ne5 {[%emt 0:09:42]} 17. b5 {[%emt 0:11:40]} axb5 {[%emt 0:01:44]} 18. Bxb5 {[%emt 0:00:36]} Nxf3+ {[%emt 0:01:10]} 19. Nxf3 {[%emt 0:00:25]} Rfd8 {[%emt 0:04:06]} 20. Bg5 {[%emt 0:07:29]} Rxd1 {[%emt 0:02:14]} 21. Rxd1 {[%emt 0:00:40]} Nf6 {[%emt 0:04:23]} 22. Bxf6 {[%emt 0:03:48]} Bxf6 {[%emt 0:00:32]} 23. Rd7 {[%emt 0:00:26]} Qc8 {[%emt 0:01:30]} 24. Qd3 {[%emt 0:11:15]} c4 {[%emt 0:03:57]} 25. Qe3 {[%emt 0:06:55]} Bc6 {[%emt 0:03:34]} 26. Rd6 {[%emt 0:01:50]} Bxb5 {[%emt 0:03:13]} 27. axb5 {[%emt 0:00:12]} Ra1+ {[%emt 0:00:38]} 28. Kh2 {[%emt 0:00:32]} Be7 {[%emt 0:02:20]} 29. Rc6 {[%emt 0:03:58]} Qb8+ {[%emt 0:00:17]} 30. e5 {[%emt 0:02:16]} Bc5 {[%emt 0:00:09]} 31. Qf4 {[%emt 0:04:06]} Bxf2 {[%emt 0:17:52]} 32. Ng5 {[%emt 0:01:57]} Bg1+ {[%emt 0:00:07]} 33. Kg3 Rf1 {[%emt 0:00:18]} 34. Qxf1 {[%emt 0:07:48]} Qxe5+ {[%emt 0:00:02]} 35. Kh4 {[%emt 0:00:34]} f6 {[%emt 0:01:15]} 36. Rc8+ {[%emt 0:02:32]} Kg7 {[%emt 0:00:24]} 37. Rc7+ {[%emt 0:02:43]} Kg8 {[%emt 0:01:17]} 38. Rc8+ {[%emt 0:03:06]} Kg7 {[%emt 0:00:13]} 39. Rc7+ {[%emt 0:10:13]} Kg8 {[%emt 0:00:06]} 40. Rc8+ {[%emt 0:01:39]} Kg7 {[%emt 0:00:01]} 1/2-1/2

[Event "Coimbra Queima Fitas Open 2024"]
[Site "Coimbra"]
[Date "2024.04.27"]
[Round "5.11"]
[White "Monteiro, Paulo Alexandre Gome"]
[Black "Ledas, Armandas"]
[Result "1-0"]
[ECO "A59"]
[WhiteElo "2122"]
[BlackElo "1851"]
[Annotator "NA RC"]
[PlyCount "115"]
[EventDate "2024.04.23"]
[EventType "swiss"]
[EventCountry "POR"]
[SourceTitle "playchess.com"]
[Source "ChessBase"]
[SourceQuality "1"]
[TimeControl "5400+30"]

1. d4 {[%emt 0:01:07]} Nf6 {[%emt 0:00:11]} 2. c4 {[%emt 0:00:14]} c5 {[%emt 0:00:09]} 3. d5 {[%emt 0:00:35]} b5 {[%emt 0:00:10]} 4. cxb5 {[%emt 0:00:43]} a6 {[%emt 0:00:09]} 5. bxa6 {[%emt 0:00:07]} Bxa6 {[%emt 0:00:07]} 6. Nc3 {[%emt 0:01:03]} d6 {[%emt 0:00:10]} 7. e4 {[%emt 0:00:54]} Bxf1 {[%emt 0:00:11]} 8. Kxf1 {[%emt 0:00:06]} g6 {[%emt 0:00:33]} 9. g3 {[%emt 0:00:30]} Qc8 {[%emt 0:00:48]} 10. Kg2 {[%emt 0:01:56]} Bg7 {[%emt 0:00:09]} 11. Nf3 {[%emt 0:01:57]} O-O {[%emt 0:00:15]} 12. Re1 {[%emt 0:05:13]} Nfd7 {[%emt 0:00:14]} 13. Bf4 {[%emt 0:06:42]} Qb7 {[%emt 0:04:27]} 14. Rb1 {[%emt 0:06:12]} Na6 {[%emt 0:03:13]} 15. e5 {[%emt 0:05:55]} dxe5 {[%emt 0:02:05]} 16. Nxe5 {[%emt 0:01:25]} Nxe5 {[%emt 0:00:31]} 17. Bxe5 {[%emt 0:00:09]} Rfd8 {[%emt 0:12:12]} 18. Bxg7 {[%emt 0:09:41]} Kxg7 {[%emt 0:00:02]} 19. Qf3 {[%emt 0:07:37]} Nb4 {[%emt 0:04:22]} 20. a3 {[%emt 0:09:45]} Nxd5 {[%emt 0:08:30]} 21. Nxd5 {[%emt 0:01:22]} Qxd5 {[%emt 0:01:51]} 22. Qxd5 {[%emt 0:02:04]} Rxd5 {[%emt 0:00:01]} 23. Rxe7 {[%emt 0:00:22]} c4 {[%emt 0:04:03]} 24. Rc7 {[%emt 0:03:04]} Ra4 {[%emt 0:01:11]} 25. Re1 {[%emt 0:02:06]} h5 {[%emt 0:02:56]} 26. Ree7 {[%emt 0:03:39]} Rf5 {[%emt 0:01:39]} 27. Re4 {[%emt 0:00:52]} Rb5 {[%emt 0:12:30]} 28. Rf4 {[%emt 0:01:22]} c3 {[%emt 0:02:39]} 29. Rfxf7+ {[%emt 0:05:42]} Kg8 {[%emt 0:00:09]} 30. bxc3 {[%emt 0:00:16]} Rb6 {[%emt 0:00:50]} 31. Rfd7 {[%emt 0:02:01]} Rb8 {[%emt 0:01:35]} 32. Rg7+ {[%emt 0:00:59]} Kf8 {[%emt 0:00:22]} 33. Rxg6 {[%emt 0:00:24]} Rxa3 {[%emt 0:00:18]} 34. Rh6 {[%emt 0:00:25]} Kg8 {[%emt 0:00:01]} 35. Rxh5 {[%emt 0:00:18]} Ra2 {[%emt 0:01:12]} 36. Rg5+ {[%emt 0:02:40]} Kh8 {[%emt 0:00:12]} 37. Rf5 {[%emt 0:01:22]} Rc2 {[%emt 0:00:40]} 38. Rff7 {[%emt 0:00:30]} Rcb2 {[%emt 0:00:54]} 39. h4 {[%emt 0:01:24]} R2b6 {[%emt 0:00:06]} 40. Rh7+ {[%emt 0:01:19]} Kg8 {[%emt 0:00:02]} 41. h5 {[%emt 0:00:14]} Rf6 {[%emt 0:01:41]} 42. Rcg7+ {[%emt 0:00:42]} Kf8 {[%emt 0:00:01]} 43. Rh8+ {[%emt 0:00:24]} Kxg7 {[%emt 0:00:02]} 44. Rxb8 {[%emt 0:00:08]} Rc6 {[%emt 0:00:05]} 45. Rb3 {[%emt 0:00:25]} Kh6 {[%emt 0:00:09]} 46. g4 {[%emt 0:00:25]} Kg5 {[%emt 0:00:34]} 47. Kg3 {[%emt 0:00:26]} Rd6 {[%emt 0:00:02]} 48. Rb5+ {[%emt 0:00:21]} Kh6 {[%emt 0:00:13]} 49. f4 {[%emt 0:02:24]} Rd3+ {[%emt 0:00:21]} 50. Kh4 {[%emt 0:00:10]} Rxc3 {[%emt 0:00:02]} 51. g5+ {[%emt 0:00:34]} Kg7 {[%emt 0:00:14]} 52. Rb7+ {[%emt 0:00:06]} Kg8 {[%emt 0:00:24]} 53. g6 {[%emt 0:00:19]} Rc8 {[%emt 0:01:05]} 54. Kg5 {[%emt 0:00:50]} Kh8 {[%emt 0:00:12]} 55. f5 {[%emt 0:00:25]} Kg8 {[%emt 0:01:32]} 56. h6 {[%emt 0:01:06]} Rf8 {[%emt 0:01:09]} 57. h7+ {[%emt 0:00:49]} Kh8 {[%emt 0:00:06]} 58. g7+ {[%emt 0:00:15]} 1-0

[Event "Coimbra Queima Fitas Open 2024"]
[Site "Coimbra"]
[Date "2024.04.27"]
[Round "5.12"]
[White "Asvestopoulou, Evdokia"]
[Black "Vasconcelos, Paulo Jorge Lopes De"]
[Result "0-1"]
[ECO "E81"]
[WhiteElo "1835"]
[BlackElo "2093"]
[Annotator "NA RC"]
[PlyCount "64"]
[EventDate "2024.04.23"]
[EventType "swiss"]
[EventCountry "POR"]
[SourceTitle "playchess.com"]
[Source "ChessBase"]
[SourceQuality "1"]
[TimeControl "5400+30"]

1. d4 {[%emt 0:03:00]} Nf6 {[%emt 0:00:03]} 2. c4 {[%emt 0:00:04]} g6 {[%emt 0:00:43]} 3. Nc3 {[%emt 0:00:31]} Bg7 {[%emt 0:00:06]} 4. e4 {[%emt 0:00:04]} d6 {[%emt 0:00:16]} 5. f3 {[%emt 0:00:08]} O-O {[%emt 0:00:18]} 6. Be3 {[%emt 0:00:08]} c5 {[%emt 0:00:07]} 7. d5 {[%emt 0:00:05]} e6 {[%emt 0:00:11]} 8. Qd2 {[%emt 0:08:27]} exd5 {[%emt 0:00:20]} 9. exd5 {[%emt 0:01:26]} Re8 {[%emt 0:08:25]} 10. O-O-O {[%emt 0:00:09]} Nbd7 {[%emt 0:00:40]} 11. g4 {[%emt 0:04:39]} Ne5 {[%emt 0:03:37]} 12. h3 {[%emt 0:04:31]} a6 {[%emt 0:03:51]} 13. Bh6 {[%emt 0:03:06]} Bh8 {[%emt 0:18:26]} 14. f4 {[%emt 0:12:55]} Ned7 {[%emt 0:00:17]} 15. h4 {[%emt 0:04:04]} Nxg4 {[%emt 0:00:35]} 16. h5 {[%emt 0:02:43]} Nxh6 {[%emt 0:18:21]} 17. hxg6 {[%emt 0:01:18]} Bg7 {[%emt 0:00:15]} 18. gxf7+ {[%emt 0:09:29]} Nxf7 {[%emt 0:00:51]} 19. Bd3 {[%emt 0:00:40]} h6 {[%emt 0:01:05]} 20. Nf3 {[%emt 0:03:26]} Nf6 {[%emt 0:00:38]} 21. Rdg1 {[%emt 0:02:50]} Bg4 {[%emt 0:15:09]} 22. Qg2 {[%emt 0:11:32]} Qd7 {[%emt 0:09:57]} 23. Rh4 {[%emt 0:09:41]} h5 {[%emt 0:01:10]} 24. Bg6 {[%emt 0:02:52]} Bxf3 {[%emt 0:05:23]} 25. Qxf3 {[%emt 0:02:34]} Qe7 {[%emt 0:00:42]} 26. Rh3 {[%emt 0:01:21]} Nh6 {[%emt 0:03:48]} 27. Bxh5 {[%emt 0:05:36]} Nxh5 {[%emt 0:00:29]} 28. Qxh5 {[%emt 0:00:02]} Qf6 {[%emt 0:01:43]} 29. Qxh6 {[%emt 0:02:35]} Re1+ {[%emt 0:00:12]} 30. Kc2 {[%emt 0:03:19]} Rxg1 {[%emt 0:00:12]} 31. Qh7+ {[%emt 0:01:44]} Kf8 {[%emt 0:00:15]} 32. Qe4 {[%emt 0:00:53]} Re8 {[%emt 0:00:36]} 0-1

[Event "Coimbra Queima Fitas Open 2024"]
[Site "Coimbra"]
[Date "2024.04.27"]
[Round "5.13"]
[White "Pinto, Jose Joao Meireles A"]
[Black "Pacetti Terra, Nicolas Marcelo"]
[Result "0-1"]
[ECO "C22"]
[WhiteElo "1829"]
[BlackElo "2019"]
[Annotator "NA RC"]
[PlyCount "48"]
[EventDate "2024.04.23"]
[EventType "swiss"]
[EventCountry "POR"]
[SourceTitle "playchess.com"]
[Source "ChessBase"]
[SourceQuality "1"]
[TimeControl "5400+30"]

1. e4 {[%emt 0:00:09]} e5 {[%emt 0:00:06]} 2. d4 {[%emt 0:00:18]} exd4 {[%emt 0:00:59]} 3. Qxd4 {[%emt 0:00:04]} Nc6 {[%emt 0:00:48]} 4. Qe3 {[%emt 0:00:05]} Nf6 {[%emt 0:08:17]} 5. Nc3 {[%emt 0:00:17]} Bb4 {[%emt 0:00:56]} 6. Bd2 {[%emt 0:01:45]} O-O {[%emt 0:00:58]} 7. O-O-O {[%emt 0:03:26]} Re8 {[%emt 0:06:18]} 8. f3 {[%emt 0:25:20]} d5 {[%emt 0:10:23]} 9. Be1 {[%emt 0:06:58]} d4 {[%emt 0:06:08]} 10. Qf2 {[%emt 0:04:49]} Qe7 {[%emt 0:13:30]} 11. Nb1 {[%emt 0:15:32]} Bc5 {[%emt 0:05:32]} 12. Qh4 {[%emt 0:04:06]} Be6 {[%emt 0:00:26]} 13. a3 {[%emt 0:01:40]} Rab8 {[%emt 0:09:19]} 14. Bd3 {[%emt 0:05:35]} Ba2 {[%emt 0:03:41]} 15. Kd2 {[%emt 0:03:25]} b5 {[%emt 0:07:26]} 16. b4 {[%emt 0:06:34]} Bd6 {[%emt 0:03:03]} 17. Nh3 {[%emt 0:03:29]} a5 {[%emt 0:01:40]} 18. bxa5 {[%emt 0:02:39]} Nxa5 {[%emt 0:04:08]} 19. Ke2 {[%emt 0:01:21]} Nc4 {[%emt 0:04:49]} 20. Bd2 {[%emt 0:02:49]} Nxd2 {[%emt 0:01:36]} 21. Nxd2 {[%emt 0:00:04]} Nxe4 {[%emt 0:01:24]} 22. Qxe7 {[%emt 0:03:59]} Nc3+ {[%emt 0:00:10]} 23. Kf1 {[%emt 0:00:03]} Rxe7 {[%emt 0:00:10]} 24. Ne4 {[%emt 0:00:49]} Nxd1 {[%emt 0:00:12]} 0-1

[Event "Coimbra Queima Fitas Open 2024"]
[Site "Coimbra"]
[Date "2024.04.27"]
[Round "5.14"]
[White "Bras, Hugo Miguel Pereira"]
[Black "Maloberti, David"]
[Result "0-1"]
[ECO "C01"]
[WhiteElo "1827"]
[BlackElo "1975"]
[Annotator "NA RC"]
[PlyCount "92"]
[EventDate "2024.04.23"]
[EventType "swiss"]
[EventCountry "POR"]
[SourceTitle "playchess.com"]
[Source "ChessBase"]
[SourceQuality "1"]
[TimeControl "5400+30"]

1. e4 {[%emt 0:01:02]} e6 {[%emt 0:00:10]} 2. d4 {[%emt 0:00:05]} d5 {[%emt 0:00:04]} 3. exd5 {[%emt 0:00:06]} exd5 {[%emt 0:00:06]} 4. Nf3 {[%emt 0:00:08]} Bd6 {[%emt 0:00:12]} 5. c4 {[%emt 0:00:16]} c6 {[%emt 0:02:01]} 6. Nc3 {[%emt 0:01:08]} Nf6 {[%emt 0:01:41]} 7. Bd3 {[%emt 0:00:54]} O-O {[%emt 0:00:53]} 8. O-O {[%emt 0:00:05]} dxc4 {[%emt 0:02:10]} 9. Bxc4 {[%emt 0:00:12]} Bg4 {[%emt 0:00:14]} 10. h3 {[%emt 0:00:28]} Bh5 {[%emt 0:00:32]} 11. Bg5 {[%emt 0:07:13]} Nbd7 {[%emt 0:00:56]} 12. Re1 {[%emt 0:00:58]} Qa5 {[%emt 0:05:23]} 13. g4 {[%emt 0:07:21]} Nxg4 {[%emt 0:04:40]} 14. hxg4 {[%emt 0:01:10]} Bxg4 {[%emt 0:00:07]} 15. Bh4 {[%emt 0:00:22]} Qh5 {[%emt 0:00:29]} 16. Kg2 {[%emt 0:09:20]} Bxf3+ {[%emt 0:00:48]} 17. Qxf3 {[%emt 0:00:05]} Qxh4 {[%emt 0:00:06]} 18. Rh1 {[%emt 0:00:06]} Qg5+ {[%emt 0:02:13]} 19. Kf1 {[%emt 0:00:32]} Nf6 {[%emt 0:00:06]} 20. Ne4 {[%emt 0:03:05]} Nxe4 {[%emt 0:00:55]} 21. Qxe4 {[%emt 0:00:07]} Qg6 {[%emt 0:07:05]} 22. Qf3 {[%emt 0:00:27]} Rae8 {[%emt 0:01:27]} 23. Bd3 {[%emt 0:01:59]} f5 {[%emt 0:00:53]} 24. Bc4+ {[%emt 0:18:58]} Kh8 {[%emt 0:00:15]} 25. Qh3 {[%emt 0:00:34]} h6 {[%emt 0:04:32]} 26. Rg1 {[%emt 0:08:24]} Qf6 {[%emt 0:00:13]} 27. Qh5 {[%emt 0:00:52]} Qxd4 {[%emt 0:08:24]} 28. Be2 {[%emt 0:04:04]} Re6 {[%emt 0:05:59]} 29. Rd1 {[%emt 0:01:31]} Qe5 {[%emt 0:00:44]} 30. Bc4 {[%emt 0:03:03]} Re7 {[%emt 0:02:59]} 31. Bd3 {[%emt 0:12:26]} Qh2 {[%emt 0:02:21]} 32. Qf3 {[%emt 0:02:12]} Qf4 {[%emt 0:01:04]} 33. Qh5 {[%emt 0:00:51]} Bc5 {[%emt 0:02:42]} 34. Rg2 {[%emt 0:01:13]} Bd4 {[%emt 0:01:12]} 35. b3 {[%emt 0:02:55]} Re3 {[%emt 0:03:36]} 36. Bc4 {[%emt 0:01:37]} c5 {[%emt 0:00:54]} 37. Bf7 {[%emt 0:05:09]} Rf3 {[%emt 0:01:08]} 38. Rxd4 {[%emt 0:02:55]} cxd4 {[%emt 0:02:46]} 39. Kg1 {[%emt 0:03:42]} Rc3 {[%emt 0:13:16]} 40. Rxg7 {[%emt 0:01:46]} Rc1+ {[%emt 0:00:05]} 41. Kg2 {[%emt 0:00:20]} Qe4+ {[%emt 0:00:01]} 42. f3 {[%emt 0:01:13]} Qe2+ {[%emt 0:00:04]} 43. Kg3 {[%emt 0:00:01]} Rg1+ {[%emt 0:00:08]} 44. Kf4 {[%emt 0:00:20]} Qe3+ {[%emt 0:00:14]} 45. Kxf5 {[%emt 0:00:10]} Rxg7 {[%emt 0:00:04]} 46. f4 {[%emt 0:01:12]} Rfxf7+ {[%emt 0:00:07]} 0-1

[Event "Coimbra Queima Fitas Open 2024"]
[Site "Coimbra"]
[Date "2024.04.27"]
[Round "5.15"]
[White "Meira, Joao Pedro Pires Car"]
[Black "Guerra, Jose Goulart De Varg"]
[Result "1-0"]
[ECO "A47"]
[WhiteElo "1967"]
[BlackElo "1813"]
[Annotator "NA RC"]
[PlyCount "30"]
[EventDate "2024.04.23"]
[EventType "swiss"]
[EventCountry "POR"]
[SourceTitle "playchess.com"]
[Source "ChessBase"]
[SourceQuality "1"]
[TimeControl "5400+30"]

1. d4 {[%emt 0:00:44]} Nf6 {[%emt 0:04:05]} 2. Nf3 {[%emt 0:00:19]} b6 {[%emt 0:00:32]} 3. e3 {[%emt 0:02:39]} e6 {[%emt 0:00:12]} 4. Bd3 {[%emt 0:00:08]} c5 {[%emt 0:01:21]} 5. O-O {[%emt 0:10:05]} Be7 {[%emt 0:05:37]} 6. dxc5 bxc5 {[%emt 0:02:20]} 7. b3 {[%emt 0:08:32]} O-O {[%emt 0:00:53]} 8. Bb2 {[%emt 0:01:34]} d5 {[%emt 0:00:34]} 9. Nbd2 {[%emt 0:02:06]} Ba6 {[%emt 0:04:56]} 10. Qe2 {[%emt 0:06:02]} Bxd3 {[%emt 0:00:30]} 11. cxd3 {[%emt 0:00:59]} Nbd7 {[%emt 0:00:26]} 12. e4 {[%emt 0:03:08]} h6 {[%emt 0:01:43]} 13. Rfe1 {[%emt 0:06:39]} Re8 {[%emt 0:00:28]} 14. exd5 {[%emt 0:03:43]} exd5 {[%emt 0:00:12]} 15. d4 {[%emt 0:00:30]} Qa5 {[%emt 0:03:28]} 1-0